fUST/lending_fUST_20250822
["ID","MTS","AMOUNT","RATE_DAILY","PERIOD"]
[380540240,1755803440928,-480.0,0.00019726,2]
[380540241,1755803440937,-480.0,0.00019726,2]
[380540242,1755803440947,-480.0,0.00019726,2]
[380540243,1755803440956,-480.0,0.00019726,2]
[380540244,1755803440966,-480.0,0.00019726,2]
[380540245,1755803440975,-480.0,0.00019726,2]
[380540246,1755803440985,-480.0,0.00019726,2]
[380540247,1755803440994,-508.33,0.00019726,2]
[380540248,1755803441004,-480.0,0.00019726,2]
[380540249,1755803441013,-480.0,0.00019726,2]
[380540250,1755803441023,-480.0,0.00019726,2]
[380540251,1755803441032,-1332.09,0.00019726,2]
[380540252,1755803441041,-480.0,0.00019726,2]
[380540253,1755803441050,-1128.28,0.00019726,2]
[380540254,1755803441059,-2367.25,0.00019726,2]
[380540255,1755803441069,-480.0,0.00019726,2]
[380540256,1755803441078,-480.0,0.00019726,2]
[380540257,1755803441087,-521.92,0.00019726,2]
[380540258,1755803441096,-184.45,0.00019726,2]
[380540259,1755803441106,-480.0,0.00019726,2]
[380540260,1755803441115,-660.12,0.00019726,2]
[380540261,1755803441124,-480.0,0.00019726,2]
[380540262,1755803441134,-480.0,0.00019726,2]
[380540263,1755803441144,-528.98,0.00019726,2]
[380540264,1755803441153,-421.60775878,0.00019726,2]
[380540265,1755803441163,-480.0,0.00019726,2]
[380540266,1755803441172,-563.29,0.00019726,2]
[380540267,1755803441181,-1729.46,0.00019726,2]
[380540268,1755803441190,-480.0,0.00019726,2]
[380540269,1755803441200,-1843.28,0.00019726,2]
[380540270,1755803441208,-480.0,0.00019726,2]
[380540271,1755803441217,-165.49339337,0.00019726,2]
[380540272,1755803441227,-628.13,0.00019726,2]
[380540273,1755803441237,-480.0,0.00019726,2]
[380540274,1755803441246,-480.0,0.00019726,2]
[380540275,1755803441256,-1141.19,0.00019726,2]
[380540276,1755803441264,-480.0,0.00019726,2]
[380540277,1755803441274,-480.0,0.00019726,2]
[380540278,1755803441283,-1200.97,0.00019726,2]
[380540279,1755803441293,-480.0,0.00019726,2]
[380540280,1755803441302,-940.42,0.00019726,2]
[380540281,1755803441312,-734.3,0.00019726,2]
[380540282,1755803441321,-153.0,0.0001981,2]
[380540283,1755803441330,-235.15555361,0.000199,2]
[380540284,1755803441339,-8896.6992863,0.000199,2]
[380540285,1755803441348,-4048.75441057,0.000199,2]
[380540286,1755803441357,-480.0,0.00019997,2]
[380540287,1755803441367,-480.0,0.00019997,2]
[380540288,1755803441378,-4176.39,0.00019997,2]
[380540289,1755803441387,-776.32,0.00019997,2]
[380540290,1755803441396,-4546.0,0.00019997,2]
[380540291,1755803441405,-480.0,0.00019997,2]
[380540292,1755803441414,-2826.97,0.00019997,2]
[380540293,1755803441424,-1189.4,0.00019997,2]
[380540294,1755803441433,-481.04,0.00019997,2]
[380540295,1755803441445,-480.0,0.00019997,2]
[380540296,1755803441454,-778.92,0.00019997,2]
[380540297,1755803441463,-1004.26,0.00019997,2]
[380540298,1755803441472,-480.0,0.0002,2]
[380540299,1755803441482,-480.0,0.0002,2]
[380540300,1755803441491,-480.0,0.0002,2]
[380540301,1755803441500,-480.0,0.0002,2]
[380540302,1755803441509,-480.0,0.0002,2]
[380540303,1755803441519,-480.0,0.0002,2]
[380540304,1755803441529,-480.0,0.0002,2]
[380540305,1755803441538,-480.0,0.0002,2]
[380540306,1755803441547,-480.0,0.0002,2]
[380540307,1755803441556,-545.18,0.0002,2]
[380540308,1755803441565,-480.0,0.0002,2]
[380540309,1755803441575,-532.11,0.0002,2]
[380540310,1755803441583,-480.0,0.0002,2]
[380540311,1755803441592,-480.0,0.0002,2]
[380540312,1755803441601,-480.0,0.0002,2]
[380540313,1755803441610,-713.54,0.0002,2]
[380540314,1755803441619,-480.0,0.0002,2]
[380540315,1755803441629,-480.0,0.0002,2]
[380540316,1755803441638,-480.0,0.0002,2]
[380540317,1755803441647,-480.0,0.0002,2]
[380540318,1755803441656,-1091.11,0.0002,2]
[380540319,1755803441665,-223.40164622,0.0002,2]
[380540320,1755803441674,-517.19,0.0002,2]
[380540321,1755803441683,-480.0,0.0002,2]
[380540322,1755803441692,-480.0,0.0002,2]
[380540323,1755803441850,-480.0,0.0002,2]
[380540324,1755803441860,-480.0,0.0002,2]
[380540325,1755803441870,-480.0,0.0002,2]
[380540326,1755803441881,-480.0,0.0002,2]
[380540327,1755803441890,-480.0,0.0002,2]
[380540328,1755803441900,-508.33,0.0002,2]
[380540329,1755803441909,-480.0,0.0002,2]
[380540330,1755803441919,-480.0,0.0002,2]
[380540331,1755803441928,-1332.09,0.0002,2]
[380540332,1755803441937,-480.0,0.0002,2]
[380540333,1755803441946,-480.0,0.0002,2]
[380540334,1755803441956,-1128.28,0.0002,2]
[380540335,1755803441965,-2367.25,0.0002,2]
[380540336,1755803441975,-480.0,0.0002,2]
[380540337,1755803441985,-480.0,0.0002,2]
[380540338,1755803441994,-521.92,0.0002,2]
[380540339,1755803442003,-480.0,0.0002,2]
[380540340,1755803442013,-660.12,0.0002,2]
[380540341,1755803442022,-480.0,0.0002,2]
[380540342,1755803442031,-480.0,0.0002,2]
[380540343,1755803442040,-528.98,0.0002,2]
[380540344,1755803442050,-480.0,0.0002,2]
[380540345,1755803442059,-563.29,0.0002,2]
[380540346,1755803442069,-1729.46,0.0002,2]
[380540347,1755803442078,-480.0,0.0002,2]
[380540348,1755803442087,-1843.28,0.0002,2]
[380540349,1755803442096,-480.0,0.0002,2]
[380540350,1755803442106,-628.13,0.0002,2]
[380540351,1755803442115,-480.0,0.0002,2]
[380540352,1755803442124,-480.0,0.0002,2]
[380540353,1755803442135,-1141.19,0.0002,2]
[380540354,1755803442143,-480.0,0.0002,2]
[380540355,1755803442153,-480.0,0.0002,2]
[380540356,1755803442161,-1200.97,0.0002,2]
[380540357,1755803442171,-480.0,0.0002,2]
[380540358,1755803442180,-940.42,0.0002,2]
[380540359,1755803442189,-734.3,0.0002,2]
[380540360,1755803442198,-235.1555536,0.00020075,2]
[380540361,1755803442207,-151.0,0.00020106,2]
[380540362,1755803442217,-2030.296672,0.00020106,2]
[380540363,1755803442226,-2105.41764886,0.00020161,2]
[380540364,1755803442236,-2183.31810187,0.00020216,2]
[380540365,1755803442247,-235.1555536,0.0002025,2]
[380540366,1755803442256,-2264.10087164,0.00020271,2]
[380540367,1755803442267,-480.0,0.00020271,2]
[380540368,1755803442277,-4176.39,0.00020271,2]
[380540369,1755803442286,-776.32,0.00020271,2]
[380540370,1755803442297,-4546.0,0.00020271,2]
[380540371,1755803442306,-480.0,0.00020271,2]
[380540372,1755803442315,-2826.97,0.00020271,2]
[380540373,1755803442324,-1189.4,0.00020271,2]
[380540374,1755803442333,-481.04,0.00020271,2]
[380540375,1755803442342,-480.0,0.00020271,2]
[380540376,1755803442351,-778.92,0.00020271,2]
[380540377,1755803442361,-1004.26,0.00020271,2]
[380540378,1755803442370,-500.0,0.00020272,2]
[380540379,1755803442379,-242.48804312,0.00020272,2]
[380540380,1755803442388,-500.0,0.00020272,2]
[380540381,1755803442397,-500.0,0.00020272,2]
[380540382,1755803442407,-500.0,0.00020272,2]
[380540383,1755803442415,-500.0,0.00020272,2]
[380540384,1755803442425,-500.0,0.00020272,2]
[380540385,1755803442434,-227.60423846,0.00020272,2]
[380540386,1755803442444,-500.0,0.00020272,2]
[380540387,1755803442456,-500.0,0.00020272,2]
[380540388,1755803442466,-500.0,0.00020272,2]
[380540389,1755803442475,-500.0,0.00020272,2]
[380540390,1755803442486,-500.0,0.00020272,2]
[380540391,1755803442495,-500.0,0.00020272,2]
[380540392,1755803442504,-500.0,0.00020272,2]
[380540393,1755803442513,-500.0,0.00020272,2]
[380540394,1755803442524,-500.0,0.00020272,2]
[380540395,1755803442534,-500.0,0.00020272,2]
[380540396,1755803442544,-873.16894867,0.00020272,2]
[380540397,1755803442553,-873.16894867,0.00020272,2]
[380540398,1755803442562,-873.16894867,0.00020272,2]
[380540399,1755803442572,-873.16894867,0.00020272,2]
[380540400,1755803442583,-873.16894867,0.00020272,2]
[380540401,1755803442593,-873.16894867,0.00020272,2]
[380540402,1755803442602,-873.16894867,0.00020272,2]
[380540403,1755803442611,-873.16894867,0.00020272,2]
[380540404,1755803442620,-873.16894867,0.00020272,2]
[380540405,1755803442631,-873.16894867,0.00020272,2]
[380540406,1755803442640,-873.16894867,0.00020272,2]
[380540407,1755803442649,-873.16894867,0.00020272,2]
[380540408,1755803442658,-480.0,0.00020273,2]
[380540409,1755803442667,-480.0,0.00020273,2]
[380540410,1755803442676,-480.0,0.00020273,2]
[380540411,1755803442685,-480.0,0.00020273,2]
[380540412,1755803442695,-480.0,0.00020273,2]
[380540413,1755803442705,-480.0,0.00020273,2]
[380540414,1755803442714,-480.0,0.00020273,2]
[380540415,1755803442723,-480.0,0.00020273,2]
[380540416,1755803442732,-480.0,0.00020273,2]
[380540417,1755803442741,-545.18,0.00020273,2]
[380540418,1755803442751,-419.70887099,0.00020273,2]
[380540419,1755803442760,-532.11,0.00020273,2]
[380540420,1755803442770,-480.0,0.00020273,2]
[380540421,1755803442780,-480.0,0.00020273,2]
[380540422,1755803442789,-713.54,0.00020273,2]
[380540423,1755803442798,-358.77598002,0.00020273,2]
[380540424,1755803442808,-480.0,0.00020273,2]
[380540425,1755803442818,-480.0,0.00020273,2]
[380540426,1755803442827,-480.0,0.00020273,2]
[380540427,1755803442837,-1091.11,0.00020273,2]
[380540428,1755803442847,-517.19,0.00020273,2]
[380540429,1755803442857,-480.0,0.00020273,2]
[380540430,1755803442867,-480.0,0.00020273,2]
[380540431,1755803442877,-480.0,0.00020273,2]
[380540432,1755803442894,-480.0,0.00020273,2]
[380540433,1755803442903,-480.0,0.00020273,2]
[380540434,1755803442913,-480.0,0.00020273,2]
[380540435,1755803442922,-480.0,0.00020273,2]
[380540436,1755803442932,-508.33,0.00020273,2]
[380540437,1755803442941,-480.0,0.00020273,2]
[380540438,1755803442951,-1332.09,0.00020273,2]
[380540439,1755803442961,-480.0,0.00020273,2]
[380540440,1755803442970,-579.4935073,0.00020273,2]
[380540441,1755803442980,-1128.28,0.00020273,2]
[380540442,1755803442990,-2367.25,0.00020273,2]
[380540443,1755803442999,-488.84337204,0.00020273,2]
[380540444,1755803443008,-480.0,0.00020273,2]
[380540445,1755803443018,-521.92,0.00020273,2]
[380540447,1755803443027,-480.0,0.00020273,2]
[380540449,1755803443037,-660.12,0.00020273,2]
[380540450,1755803443046,-480.0,0.00020273,2]
[380540451,1755803443055,-480.0,0.00020273,2]
[380540452,1755803443064,-528.98,0.00020273,2]
[380540453,1755803443074,-480.0,0.00020273,2]
[380540454,1755803443083,-563.29,0.00020273,2]
[380540455,1755803443092,-1729.46,0.00020273,2]
[380540456,1755803443102,-480.0,0.00020273,2]
[380540457,1755803443112,-1843.28,0.00020273,2]
[380540458,1755803443122,-480.0,0.00020273,2]
[380540459,1755803443134,-628.13,0.00020273,2]
[380540460,1755803443144,-480.0,0.00020273,2]
[380540461,1755803443153,-480.0,0.00020273,2]
[380540462,1755803443163,-1141.19,0.00020273,2]
[380540463,1755803443172,-480.0,0.00020273,2]
[380540465,1755803443182,-480.0,0.00020273,2]
[380540466,1755803443191,-1200.97,0.00020273,2]
[380540468,1755803443200,-480.0,0.00020273,2]
[380540469,1755803443209,-940.42,0.00020273,2]
[380540470,1755803443219,-734.3,0.00020273,2]
[380540472,1755803443228,-232.28399145,0.00020315,2]
[380540474,1755803443236,-844.19128999,0.00020315,2]
[380540476,1755803443246,-160.0,0.00020315,2]
[380540478,1755803443255,-160.0,0.00020315,2]
[380540480,1755803443264,-376.00439007,0.00020315,2]
[380540482,1755803443274,-215.86710461,0.00020315,2]
[380540484,1755803443283,-216.95272161,0.00020315,2]
[380540486,1755803443291,-160.0,0.00020315,2]
[380540487,1755803443301,-12690.45384448,0.00020316,2]
[380540488,1755803443309,-160.0,0.00020316,2]
[380540489,1755803443319,-160.0,0.00020316,2]
[380540490,1755803443328,-160.0,0.0002032,2]
[380540491,1755803443338,-2347.87260389,0.00020326,2]
[380540493,1755803443348,-1595.32318883,0.00020381,2]
[380540494,1755803443357,-235.1555536,0.00020425,2]
[380540495,1755803443367,-480.0,0.00020545,2]
[380540496,1755803443377,-4176.39,0.00020545,2]
[380540497,1755803443388,-776.32,0.00020545,2]
[380540498,1755803443397,-4546.0,0.00020545,2]
[380540499,1755803443407,-480.0,0.00020545,2]
[380540500,1755803443416,-2826.97,0.00020545,2]
[380540501,1755803443425,-1189.4,0.00020545,2]
[380540502,1755803443434,-481.04,0.00020545,2]
[380540503,1755803443445,-480.0,0.00020545,2]
[380540504,1755803443456,-778.92,0.00020545,2]
[380540505,1755803443465,-1004.26,0.00020545,2]
[380540506,1755803443474,-480.0,0.00020547,2]
[380540507,1755803443483,-480.0,0.00020547,2]
[380540508,1755803443493,-480.0,0.00020547,2]
[380540509,1755803443502,-480.0,0.00020547,2]
[380540510,1755803443512,-480.0,0.00020547,2]
[380540511,1755803443521,-480.0,0.00020547,2]
[380540512,1755803443531,-480.0,0.00020547,2]
[380540513,1755803443540,-480.0,0.00020547,2]
[380540514,1755803443550,-480.0,0.00020547,2]
[380540515,1755803443559,-545.18,0.00020547,2]
[380540517,1755803443568,-532.11,0.00020547,2]
[380540519,1755803443577,-480.0,0.00020547,2]
[380540520,1755803443586,-480.0,0.00020547,2]
[380540521,1755803443595,-713.54,0.00020547,2]
[380540522,1755803443604,-480.0,0.00020547,2]
[380540523,1755803443613,-480.0,0.00020547,2]
[380540525,1755803443622,-480.0,0.00020547,2]
[380540527,1755803443632,-1091.11,0.00020547,2]
[380540529,1755803443641,-517.19,0.00020547,2]
[380540530,1755803443650,-480.0,0.00020547,2]
[380540531,1755803443660,-480.0,0.00020547,2]
[380540532,1755803443669,-480.0,0.00020547,2]
[380540533,1755803443678,-480.0,0.00020547,2]
[380540534,1755803443687,-480.0,0.00020547,2]
[380540535,1755803443695,-480.0,0.00020547,2]
[380540536,1755803443704,-480.0,0.00020547,2]
[380540537,1755803443713,-508.33,0.00020547,2]
[380540538,1755803443722,-480.0,0.00020547,2]
[380540539,1755803443732,-480.0,0.00020547,2]
[380540540,1755803443741,-1332.09,0.00020547,2]
[380540541,1755803443750,-1128.28,0.00020547,2]
[380540542,1755803443759,-2367.25,0.00020547,2]
[380540543,1755803443768,-480.0,0.00020547,2]
[380540544,1755803443777,-521.92,0.00020547,2]
[380540545,1755803443787,-480.0,0.00020547,2]
[380540546,1755803443796,-660.12,0.00020547,2]
[380540547,1755803443807,-480.0,0.00020547,2]
[380540548,1755803443816,-480.0,0.00020547,2]
[380540549,1755803443825,-528.98,0.00020547,2]
[380540550,1755803443836,-480.0,0.00020547,2]
[380540551,1755803443845,-563.29,0.00020547,2]
[380540552,1755803443855,-1729.46,0.00020547,2]
[380540553,1755803443864,-1843.28,0.00020547,2]
[380540554,1755803443873,-480.0,0.00020547,2]
[380540556,1755803443883,-480.0,0.00020547,2]
[380540557,1755803443892,-628.13,0.00020547,2]
[380540558,1755803443902,-480.0,0.00020547,2]
[380540559,1755803443911,-480.0,0.00020547,2]
[380540560,1755803443920,-1141.19,0.00020547,2]
[380540561,1755803443930,-480.0,0.00020547,2]
[380540562,1755803443939,-480.0,0.00020547,2]
[380540563,1755803443948,-1200.97,0.00020547,2]
[380540564,1755803443957,-340.6530917,0.00020547,2]
[380540565,1755803443968,-940.42,0.00020547,2]
[380540566,1755803443977,-734.3,0.00020547,2]
[380540567,1755803443987,-235.1555536,0.000206,2]
[380540568,1755803443996,-636.78603747,0.00020673,2]
[380540569,1755803444006,-500.72930756,0.00020673,2]
[380540570,1755803444016,-500.0,0.00020673,2]
[380540571,1755803444026,-500.0,0.00020673,2]
[380540572,1755803444035,-505.69879824,0.00020673,2]
[380540573,1755803444044,-500.0,0.00020673,2]
[380540574,1755803444054,-500.0,0.00020673,2]
[380540575,1755803444063,-507.71684695,0.00020673,2]
[380540576,1755803444072,-500.0,0.00020673,2]
[380540577,1755803444081,-500.0,0.00020673,2]
[380540578,1755803444090,-500.0,0.00020673,2]
[380540579,1755803444099,-500.0,0.00020673,2]
[380540580,1755803444108,-500.0,0.00020673,2]
[380540581,1755803444118,-500.0,0.00020673,2]
[380540582,1755803444127,-500.0,0.00020673,2]
[380540583,1755803444138,-218.35339141,0.00020673,2]
[380540584,1755803444148,-318.4688872,0.000207,2]
[380540585,1755803444157,-29019.39,0.000207,2]
[380540586,1755803444167,-45540.25,0.000207,2]
[380540587,1755803444177,-214610.36,0.000207,2]
[380540588,1755803444187,-327382.37769446,0.000207,2]
[380540589,1755803444206,-302859.22230554,0.000207,2]
[380540590,1755803444216,-151.0,0.000207,2]
[380540591,1755803444226,-151.0,0.000207,2]
[380540592,1755803444236,-151.0,0.000207,2]
[380540593,1755803444245,-156.248367,0.000207,2]
[380540594,1755803444254,-151.0,0.000207,2]
[380540595,1755803444263,-167.343957,0.000207,2]
[380540596,1755803444272,-151.0,0.000207,2]
[380540597,1755803444282,-151.0,0.000207,2]
[380540598,1755803444291,-151.0,0.000207,2]
[380540599,1755803444300,-151.0,0.000207,2]
[380540600,1755803444309,-151.0,0.000207,2]
[380540601,1755803444319,-151.0,0.000207,2]
[380540602,1755803444328,-151.0,0.000207,2]
[380540603,1755803444338,-151.0,0.000207,2]
[380540604,1755803444348,-151.0,0.000207,2]
[380540605,1755803444358,-151.0,0.000207,2]
[380540606,1755803444368,-151.0,0.000207,2]
[380540607,1755803444377,-151.0,0.000207,2]
[380540608,1755803444389,-151.0,0.000207,2]
[380540609,1755803444399,-151.0,0.000207,2]
[380540610,1755803444408,-151.0,0.000207,2]
[380540611,1755803444417,-151.0,0.000207,2]
[380540612,1755803444427,-151.0,0.000207,2]
[380540613,1755803444436,-198.719125,0.000207,2]
[380540614,1755803444446,-198.719125,0.000207,2]
[380540615,1755803444456,-198.719125,0.000207,2]
[380540616,1755803444465,-198.719125,0.000207,2]
[380540617,1755803444474,-151.0,0.000207,2]
[380540618,1755803444483,-228.295323,0.000207,2]
[380540619,1755803444492,-151.0,0.000207,2]
[380540620,1755803444501,-151.0,0.000207,2]
[380540621,1755803444510,-151.0,0.000207,2]
[380540622,1755803444519,-151.0,0.000207,2]
[380540623,1755803444530,-151.0,0.000207,2]
[380540624,1755803444539,-151.0,0.000207,2]
[380540625,1755803444548,-151.0,0.000207,2]
[380540626,1755803444558,-133.41339896,0.000207,2]
[380540627,1755803444569,-17.58660104,0.000207,2]
[380540628,1755803444578,-151.0,0.000207,2]
[380540629,1755803444588,-151.0,0.000207,2]
[380540630,1755803444597,-151.0,0.000207,2]
[380540631,1755803444608,-151.0,0.000207,2]
[380540632,1755803444618,-151.0,0.000207,2]
[380540633,1755803444628,-151.0,0.000207,2]
[380540634,1755803444639,-151.0,0.000207,2]
[380540635,1755803444648,-151.0,0.000207,2]
[380540636,1755803444658,-151.0,0.000207,2]
[380540637,1755803444667,-151.0,0.000207,2]
[380540638,1755803444676,-151.0,0.000207,2]
[380540639,1755803444686,-151.0,0.000207,2]
[380540640,1755803444695,-151.0,0.000207,2]
[380540641,1755803444704,-151.0,0.000207,2]
[380540642,1755803444714,-274.475166,0.000207,2]
[380540643,1755803444724,-274.475166,0.000207,2]
[380540644,1755803444733,-274.475166,0.000207,2]
[380540645,1755803444742,-274.475166,0.000207,2]
[380540646,1755803444752,-151.0,0.000207,2]
[380540647,1755803444762,-151.0,0.000207,2]
[380540648,1755803444771,-151.0,0.000207,2]
[380540649,1755803444780,-151.0,0.000207,2]
[380540650,1755803444789,-151.0,0.000207,2]
[380540651,1755803444797,-259.224393,0.000207,2]
[380540652,1755803444806,-151.0,0.000207,2]
[380540653,1755803444816,-151.0,0.000207,2]
[380540654,1755803444826,-151.0,0.000207,2]
[380540655,1755803444836,-151.0,0.000207,2]
[380540656,1755803444845,-151.0,0.000207,2]
[380540657,1755803444855,-151.0,0.000207,2]
[380540658,1755803444864,-151.0,0.000207,2]
[380540659,1755803444873,-160.034594,0.000207,2]
[380540660,1755803444883,-151.0,0.000207,2]
[380540661,1755803444892,-151.0,0.000207,2]
[380540662,1755803444901,-151.0,0.000207,2]
[380540663,1755803444910,-151.0,0.000207,2]
[380540664,1755803444920,-151.0,0.000207,2]
[380540665,1755803444930,-151.0,0.000207,2]
[380540666,1755803444939,-151.0,0.000207,2]
[380540667,1755803444949,-152.010756,0.000207,2]
[380540668,1755803444959,-1517.073317,0.000207,2]
[380540669,1755803444968,-1517.073317,0.000207,2]
[380540670,1755803444978,-437.011995,0.000207,2]
[380540671,1755803444987,-151.0,0.000207,2]
[380540672,1755803444996,-437.011995,0.000207,2]
[380540673,1755803445006,-151.0,0.000207,2]
[380540674,1755803445015,-437.011995,0.000207,2]
[380540675,1755803445025,-437.011995,0.000207,2]
[380540676,1755803445034,-1517.073317,0.000207,2]
[380540677,1755803445043,-1517.073317,0.000207,2]
[380540678,1755803445052,-151.0,0.000207,2]
[380540679,1755803445061,-151.0,0.000207,2]
[380540680,1755803445071,-151.0,0.000207,2]
[380540681,1755803445080,-151.0,0.000207,2]
[380540682,1755803445089,-151.0,0.000207,2]
[380540683,1755803445099,-151.0,0.000207,2]
[380540684,1755803445108,-151.0,0.000207,2]
[380540685,1755803445117,-510.287072,0.000207,2]
[380540686,1755803445126,-510.287072,0.000207,2]
[380540687,1755803445136,-218.290905,0.000207,2]
[380540688,1755803445146,-510.287072,0.000207,2]
[380540689,1755803445155,-218.290905,0.000207,2]
[380540690,1755803445164,-510.287072,0.000207,2]
[380540691,1755803445173,-218.290905,0.000207,2]
[380540692,1755803445184,-151.0,0.000207,2]
[380540693,1755803445194,-218.290905,0.000207,2]
[380540694,1755803445203,-151.0,0.000207,2]
[380540695,1755803445212,-151.0,0.000207,2]
[380540696,1755803445222,-151.0,0.000207,2]
[380540697,1755803445232,-166.208864,0.000207,2]
[380540698,1755803445241,-166.208864,0.000207,2]
[380540699,1755803445250,-166.208864,0.000207,2]
[380540700,1755803445260,-166.208864,0.000207,2]
[380540701,1755803445269,-233.386558,0.000207,2]
[380540702,1755803445278,-233.386558,0.000207,2]
[380540703,1755803445287,-233.386558,0.000207,2]
[380540704,1755803445296,-233.386558,0.000207,2]
[380540705,1755803445306,-151.0,0.000207,2]
[380540706,1755803445315,-151.0,0.000207,2]
[380540707,1755803445323,-151.0,0.000207,2]
[380540708,1755803445333,-230.816513,0.000207,2]
[380540709,1755803445342,-208.379065,0.000207,2]
[380540710,1755803445351,-208.379065,0.000207,2]
[380540711,1755803445361,-208.379065,0.000207,2]
[380540712,1755803445370,-208.379065,0.000207,2]
[380540713,1755803445380,-151.0,0.000207,2]
[380540714,1755803445521,-228.618264,0.000207,2]
[380540715,1755803445532,-151.0,0.000207,2]
[380540716,1755803445542,-1555.694456,0.000207,2]
[380540717,1755803445551,-1555.694456,0.000207,2]
[380540718,1755803445562,-1555.694456,0.000207,2]
[380540719,1755803445571,-1555.694456,0.000207,2]
[380540720,1755803445581,-1618.6,0.00020812,3]
[380540721,1755803445591,-809.3,0.00020812,3]
[380540722,1755803445601,-404.66,0.00020812,3]
[380540723,1755803445611,-480.0,0.00020819,2]
[380540724,1755803445621,-4176.39,0.00020819,2]
[380540725,1755803445630,-776.32,0.00020819,2]
[380540726,1755803445643,-4546.0,0.00020819,2]
[380540727,1755803445653,-480.0,0.00020819,2]
[380540728,1755803445662,-898.01701006,0.00020819,2]
[380540729,1755803445780,-1238.34870383,0.00020819,2]
[380540730,1755803445817,-423.54996,0.00020819,2]
[380540731,1755803445829,-267.05432611,0.00020819,2]
[380540732,1755803445839,-1189.4,0.00020819,2]
[380540733,1755803445848,-481.04,0.00020819,2]
[380540734,1755803445857,-106.1129734,0.00020819,2]
[380540735,1755803445869,-281.373,0.00020819,2]
[380540736,1755803445880,-92.5140266,0.00020819,2]
[380540737,1755803445893,-778.92,0.00020819,2]
[380540738,1755803445902,-1004.26,0.00020819,2]
[380540739,1755803445911,-480.0,0.00020821,2]
[380540740,1755803445921,-480.0,0.00020821,2]
[380540741,1755803445931,-480.0,0.00020821,2]
[380540742,1755803445940,-53.43100755,0.00020821,2]
[380540743,1755803445952,-426.56899245,0.00020821,2]
[380540744,1755803445961,-450.23264524,0.00020821,2]
[380540745,1755803445971,-439.5910628,0.00020821,2]
[380540747,1755803445998,-355.0,0.000205,2]
[380540748,1755803446011,-645.0,0.000205,2]
[380540749,1755803446020,-40.4089372,0.00020821,2]
[380540751,1755803446030,-480.0,0.00020821,2]
[380540752,1755803446040,-480.0,0.00020821,2]
[380540754,1755803446050,-480.0,0.00020821,2]
[380540755,1755803446059,-545.18,0.00020821,2]
[380540756,1755803446069,-532.11,0.00020821,2]
[380540757,1755803446078,-480.0,0.00020821,2]
[380540758,1755803446089,-480.0,0.00020821,2]
[380540759,1755803446098,-713.54,0.00020821,2]
[380540760,1755803446108,-480.0,0.00020821,2]
[380540761,1755803446118,-480.0,0.00020821,2]